bitfinex/quotes_ETHUSD_20250806
["timestamp","ask_amount","ask_price","bid_price","bid_amount"]
[1754449084438,6.33326699,3592.9,3592.8,0.002]
[1754449084761,34.39936737,3592.9,3592.8,0.002]
[1754449085142,34.39936737,3592.9,3592.8,0.4577]
[1754449085463,34.86806737,3592.9,3592.8,0.4577]
[1754449085662,36.30531194,3592.9,3592.8,0.4577]
[1754449086176,37.8123249,3592.9,3592.8,0.4707]
[1754449086334,37.8123249,3592.9,3592.8,0.9264]
[1754449090079,37.8123249,3592.9,3592.8,0.002]
[1754449091181,37.8123249,3592.9,3592.8,0.9264]
[1754449093270,37.8123249,3592.9,3592.8,0.002]
[1754449093674,68.3075249,3592.9,3592.8,0.002]
[1754449094477,67.8123249,3592.9,3592.8,0.002]
[1754449095490,37.8123249,3592.9,3592.8,0.954]
[1754449097663,67.8123249,3592.9,3592.8,0.954]
[1754449097868,67.8123249,3592.9,3592.8,0.002]
[1754449098296,68.3075249,3592.9,3592.8,0.002]
[1754449099567,67.8123249,3592.9,3592.8,0.002]
[1754449100390,44.01922452,3592.9,3592.8,0.002]
[1754449100688,44.15842452,3592.9,3592.8,0.954]
[1754449101092,44.15842452,3592.9,3592.8,0.002]
[1754449106570,44.65362452,3592.9,3592.8,0.002]
[1754449108594,44.15842452,3592.9,3592.8,0.002]
[1754449108903,44.65362452,3592.9,3592.8,0.002]
[1754449111305,44.15842452,3592.9,3592.8,0.002]
[1754449111508,44.65362452,3592.9,3592.8,0.002]
[1754449111809,3.33357689,3592.5,3592.4,0.002]
[1754449112006,10.74177689,3592.5,3592.4,0.002]
[1754449112577,13.47043875,3592.5,3592.4,0.954]
[1754449123527,43.47043875,3592.5,3592.4,0.002]
[1754449123919,43.92573875,3592.5,3592.4,0.002]
[1754449124732,44.40823875,3592.5,3592.4,0.002]
[1754449125429,3.33380936,3592.2,3592.1,0.042]
[1754449125631,64.39290974,3592.2,3592.1,0.042]
[1754449126154,64.87540974,3592.2,3592.1,0.042]
[1754449126351,64.87540974,3592.2,3591.1,0.4726]
[1754449126352,0.55,3592.0,3591.1,0.4726]
[1754449126658,0.55,3591.5,3591.1,0.04]
[1754449127023,4.266,3591.4,3591.2,0.4326]
[1754449127221,3.55,3591.9,3591.3,2.78444288]
[1754449127463,4.266,3591.8,3591.4,0.9151]
[1754449127767,4.266,3591.8,3591.5,0.9151]
[1754449128066,4.266,3591.8,3591.6,0.9151]
[1754449128268,0.1392,3591.5,3591.4,2.78442947]
[1754449128564,4.4052,3591.5,3591.4,2.78442947]
[1754449128767,4.4052,3591.5,3591.4,3.34533033]
[1754449129067,4.4052,3591.5,3591.4,4.26043033]
[1754449130117,0.1392,3591.5,3591.4,4.26043033]
[1754449130343,4.4052,3591.5,3591.4,4.26043033]
[1754449132154,0.1392,3591.5,3591.4,4.26043033]
[1754449132326,0.50086998,3592.3,3592.2,2.78380936]
[1754449132526,4.90506998,3592.3,3592.2,4.2556803]
[1754449133359,0.64006998,3592.3,3592.2,4.2556803]
[1754449133670,4.90506998,3592.3,3592.2,4.2556803]
[1754449138245,4.90506998,3592.3,3592.1,2.78387148]
[1754449138451,4.76586998,3592.3,3592.2,0.9151]
[1754449138828,4.90506998,3592.3,3592.2,0.9151]
[1754449139255,4.90506998,3592.3,3591.7,0.4825]
[1754449139560,5.22116998,3592.3,3591.8,3.69921938]
[1754449139730,5.22116998,3592.3,3591.9,0.9151]
[1754449140142,0.1392,3592.0,3591.9,0.9151]
[1754449140345,4.4032,3592.0,3591.9,3.36200719]
[1754449140961,4.4032,3592.0,3591.9,4.27710719]
[1754449143458,4.4032,3592.0,3591.9,0.9151]
[1754449143791,4.4032,3592.0,3591.9,3.69914187]
[1754449144999,4.4032,3592.0,3591.7,0.9151]
[1754449145143,4.4032,3592.0,3591.9,0.9171]
[1754449145542,4.4032,3592.0,3591.9,3.70114187]
[1754449145892,0.1392,3592.0,3591.9,4.34966946]
[1754449146042,0.50086998,3592.3,3592.2,2.78380936]
[1754449146241,0.001,3592.5,3592.4,2.78365438]
[1754449146478,0.1402,3592.5,3592.4,2.78365438]
[1754449146673,4.4032,3592.5,3592.4,3.69875438]
[1754449146977,4.4032,3592.5,3592.4,4.34701075]
[1754449148275,0.1402,3592.5,3592.4,4.34701075]
[1754449162390,0.001,3592.5,3592.4,4.34701075]
[1754449166795,0.001,3592.5,3592.4,7.34701075]
[1754449176243,0.001,3592.5,3592.4,32.25791113]
[1754449176545,0.001,3592.5,3592.4,35.25791113]
[1754449177225,0.001,3592.9,3592.7,2.78342193]
[1754449177387,0.001,3592.9,3592.8,24.238427]
[1754449177591,0.001,3592.9,3592.8,32.17423802]
[1754449177817,0.001,3592.9,3592.8,8.52033764]
[1754449183030,0.001,3592.9,3592.8,32.17423802]
[1754449183229,1e-08,3592.9,3592.8,32.17423802]
[1754449183528,1e-08,3592.9,3592.8,32.31343802]
[1754449183727,1.42161401,3593.7,3593.5,2.78280228]
[1754449183890,1.42161401,3593.7,3593.5,3.6176673]
[1754449184096,1.42161401,3593.7,3593.5,4.6613673]
[1754449188497,1.42161401,3593.7,3593.5,7.6613673]
[1754449190414,1.42161401,3593.7,3593.5,4.6613673]
[1754449190619,1.42161401,3593.7,3593.5,8.9153673]
[1754449191843,1.42161401,3593.7,3593.5,8.4636673]
[1754449192041,1.42161401,3593.7,3593.5,3.6176673]
[1754449192335,0.481,3593.6,3593.5,7.8716673]
[1754449193113,0.001,3593.6,3593.5,2.78280228]
[1754449193319,1.066,3593.6,3593.5,2.78280228]
[1754449196663,0.6202,3593.6,3593.5,2.78280228]
[1754449196869,0.1402,3593.6,3593.5,2.78280228]
[1754449197030,0.1402,3593.6,3593.5,3.68730228]
[1754449197031,0.001,3593.6,3593.5,3.68730228]
[1754449197228,0.001,3593.6,3593.5,5.0518373]
[1754449200401,0.041,3593.9,3593.5,5.0518373]
[1754449200402,0.041,3593.9,3593.6,2.78272484]
[1754449200587,1e-08,3594.0,3593.9,2.78249255]
[1754449200881,1e-08,3594.0,3593.9,9.79097933]
[1754449201083,1e-08,3594.0,3593.9,9.76315441]
[1754449201286,1e-08,3594.0,3593.9,10.80685441]
[1754449201593,1e-08,3594.4,3594.3,2.7821829]
[1754449201886,1e-08,3594.4,3594.3,7.06200472]
[1754449202046,1e-08,3594.4,3594.3,10.50090691]
[1754449202386,1e-08,3594.4,3594.3,10.64010691]
[1754449202740,1e-08,3594.4,3594.3,6.38810691]
[1754449202966,1e-08,3594.4,3594.3,10.64010691]
[1754449203284,0.04,3594.9,3594.4,2.78204227]
[1754449203502,0.04,3594.9,3594.8,2.78179592]
[1754449203776,0.04,3594.9,3594.8,2.92099592]
[1754449203940,0.04,3594.9,3594.8,2.78179592]
[1754449204269,0.52,3594.9,3594.8,2.78179592]
[1754449204474,0.04,3594.9,3594.8,2.78179592]
[1754449205449,0.04,3594.9,3594.8,3.26131387]
[1754449205671,0.04,3594.9,3594.8,5.21784889]
[1754449206760,1e-08,3594.9,3594.8,5.19003094]
[1754449207667,1e-08,3594.9,3594.8,5.21784889]
[1754449208751,0.001,3595.2,3595.1,2.78156379]
[1754449208956,0.001,3595.2,3595.1,4.01277254]
[1754449209160,0.001,3595.2,3595.1,4.91727254]
[1754449210938,1e-08,3595.2,3595.1,4.88945691]
[1754449211141,1e-08,3595.2,3595.1,3.98495691]
[1754449211341,1e-08,3595.2,3595.1,4.88945691]
[1754449211766,1e-08,3595.2,3595.1,3.98495691]
[1754449211976,1e-08,3595.2,3595.1,8.23495691]
[1754449212371,1e-08,3595.2,3595.1,9.13945691]
[1754449214176,1e-08,3595.2,3595.1,8.23495691]
[1754449214775,1e-08,3595.2,3595.1,3.98495691]
[1754449215288,1e-08,3595.2,3595.1,8.23395691]
[1754449215448,1e-08,3595.2,3595.1,3.98495691]
[1754449215649,0.49780001,3595.2,3595.1,2.78156379]
[1754449215949,0.73600001,3595.2,3595.1,2.78156379]
[1754449216278,0.73600001,3595.2,3594.8,4.249]
[1754449216476,0.1392,3594.9,3594.6,4.249]
[1754449216782,0.1392,3594.9,3594.8,2.78173196]
[1754449217346,0.637,3594.9,3594.8,2.78173196]
[1754449217546,0.736,3594.9,3594.8,2.78173196]
[1754449218780,0.637,3594.9,3594.7,2.78185092]
[1754449218956,0.2382,3594.9,3594.8,2.78179592]
[1754449219577,0.736,3594.9,3594.8,2.78179592]
[1754449220585,0.736,3594.9,3594.3,0.1392]
[1754449220786,0.099,3594.9,3594.8,2.78179592]
[1754449221290,0.736,3594.9,3594.8,2.78179592]
[1754449222276,0.736,3594.9,3594.7,2.78181966]
[1754449222474,0.1392,3594.8,3594.7,2.78181966]
[1754449222682,1.0828,3594.8,3594.6,2.78188483]
[1754449222886,0.9436,3594.8,3594.5,2.78200144]
[1754449223093,0.9436,3594.7,3594.5,2.78200144]
[1754449223391,0.9436,3594.7,3594.3,2.7821729]
[1754449223392,0.637,3594.6,3593.9,0.1392]
[1754449223566,0.37251641,3594.8,3594.2,2.78225835]
[1754449223567,0.1392,3594.4,3594.2,2.78225835]
[1754449223761,1.0828,3594.3,3594.2,2.78225835]
[1754449226648,0.637,3594.3,3593.5,4.248]
[1754449226852,3.22777698,3594.6,3593.5,4.248]
[1754449226853,0.9436,3594.2,3593.5,0.76272124]
[1754449227053,0.1392,3593.6,3593.4,4.248]
[1754449227311,0.1392,3593.6,3593.5,2.78280228]
[1754449227449,0.637,3593.6,3593.5,2.78280228]
[1754449227650,0.1392,3593.6,3593.5,2.78280228]
[1754449227891,0.1392,3593.6,3593.5,3.71130228]
[1754449228299,0.1392,3593.6,3593.5,3.25420228]
[1754449228459,0.1392,3593.6,3593.5,2.78280228]
[1754449229900,0.1392,3593.6,3593.5,3.71130228]
[1754449230073,0.1392,3593.6,3593.5,2.78280228]
[1754449230828,0.637,3593.6,3593.5,2.78280228]
[1754449231127,0.637,3593.6,3593.1,0.042]
[1754449231128,1.0828,3593.6,3593.1,0.042]
[1754449231307,0.9436,3593.5,3593.2,2.78298128]
[1754449231475,2.78255448,3593.9,3593.5,0.002]
[1754449231678,1.40649029,3593.8,3593.5,0.002]
[1754449231880,0.1392,3593.6,3593.5,0.002]
[1754449232114,2.92192484,3593.6,3593.5,0.002]
[1754449232416,1.0828,3593.6,3593.5,0.002]
[1754449233118,5.3308,3593.6,3593.5,0.002]
[1754449233281,6.58279413,3593.6,3593.5,0.002]
[1754449234421,6.13699413,3593.6,3593.5,0.002]
[1754449234587,4.885,3593.6,3593.5,0.002]
[1754449234929,4.249,3593.9,3593.8,2.78252393]
[1754449235288,4.3882,3593.9,3593.8,3.23962393]
[1754449235513,0.1392,3593.9,3593.8,3.71102393]
[1754449235696,0.1392,3593.9,3593.8,4.31345681]
[1754449237821,0.637,3593.9,3593.8,2.78249806]
[1754449238591,0.1392,3593.9,3593.8,2.78249806]
[1754449239797,0.1392,3593.9,3593.5,0.002]
[1754449239992,0.4978,3593.9,3593.6,2.78266825]
[1754449240297,0.1392,3593.6,3593.5,2.78480055]
[1754449241216,0.1392,3593.6,3593.5,0.002]
[1754449241415,0.637,3593.6,3593.5,0.002]
[1754449241833,0.1392,3593.6,3593.5,2.78480228]
[1754449242339,4.248,3593.8,3593.7,2.78264741]
[1754449242514,4.248,3593.8,3593.5,0.9305]
[1754449242720,0.1392,3593.6,3593.5,0.002]
[1754449243442,0.622,3593.6,3593.5,0.002]
[1754449247119,1.0591,3593.6,3593.5,0.002]
[1754449247625,4.49195532,3593.6,3593.5,0.002]
[1754449247825,4.92905532,3593.6,3593.5,0.002]
[1754449248950,8.47905532,3593.6,3593.5,0.002]
[1754449251879,8.04195532,3593.6,3593.5,0.002]
[1754449252065,8.47905532,3593.6,3593.5,0.002]
[1754449253625,38.47905532,3593.6,3593.5,0.002]
[1754449255418,42.83850032,3593.6,3593.5,0.002]
[1754449260207,42.40140032,3593.6,3593.5,0.002]
[1754449260513,42.83850032,3593.6,3593.5,0.002]
[1754449261670,49.52050032,3593.6,3593.5,0.002]
[1754449263176,49.73259164,3593.6,3593.5,0.002]
[1754449265185,56.89259164,3593.6,3593.5,0.002]
[1754449265397,3.33303462,3593.2,3593.1,0.042]
[1754449265728,64.374135,3593.2,3593.1,0.042]
[1754449266079,64.856935,3593.2,3593.1,0.042]
[1754449267916,64.968396,3593.2,3593.1,0.042]
[1754449271147,64.856935,3593.2,3593.1,0.042]
[1754449271438,65.20694909,3593.2,3593.1,0.042]
[1754449273706,65.63724909,3593.2,3593.1,0.042]
[1754449275365,65.74871909,3593.2,3593.1,0.042]
[1754449276222,65.74871909,3593.2,3592.5,0.4644]
[1754449276223,6.33349941,3592.6,3592.5,0.002]
[1754449276440,40.72069941,3592.6,3592.5,0.002]
[1754449276659,42.28332989,3592.6,3592.5,0.002]
[1754449277662,41.80792989,3592.6,3592.5,0.002]
[1754449277963,42.28332989,3592.6,3592.5,0.002]
[1754449278615,41.80792989,3592.6,3592.5,0.002]
[1754449278819,42.28332989,3592.6,3592.5,0.002]
[1754449279053,42.28332989,3592.6,3592.1,0.042]
[1754449279054,6.33357689,3592.5,3592.1,0.042]
[1754449279254,39.96793875,3592.5,3592.1,0.042]
[1754449279421,39.49253875,3592.5,3592.1,0.042]
[1754449279734,39.96793875,3592.5,3592.1,0.042]
[1754449280145,39.06223875,3592.5,3592.1,0.042]
[1754449280448,10.17077689,3592.5,3592.4,0.9199]
[1754449280773,10.72077689,3592.5,3592.4,0.9199]
[1754449280917,34.37467727,3592.5,3592.4,0.9199]
[1754449281253,64.85007727,3592.5,3592.4,0.002]
[1754449281829,64.37467727,3592.5,3592.4,0.002]
[1754449282172,67.10333913,3592.5,3592.4,0.9199]
[1754449284369,6.47277689,3592.5,3592.4,0.9199]
[1754449284556,4.3862,3592.5,3592.4,3.7035503]
[1754449284742,4.3862,3592.5,3592.4,0.9199]
[1754449286659,7.3862,3592.5,3592.4,0.9199]
[1754449286908,7.3862,3592.5,3592.4,0.002]
[1754449287018,7.9362,3592.5,3592.4,0.9199]
[1754449287222,10.71977689,3592.5,3592.4,0.9199]
[1754449287443,13.44843875,3592.5,3592.4,0.9199]
[1754449287727,7.9362,3592.5,3592.4,0.9199]
[1754449288037,10.71977689,3592.5,3592.4,0.9199]
[1754449289530,10.71977689,3592.5,3592.4,0.002]
[1754449290132,11.19517689,3592.5,3592.4,0.002]
[1754449290939,10.71977689,3592.5,3592.4,0.002]
[1754449291278,13.44843875,3592.5,3592.4,0.002]
[1754449291447,13.92383875,3592.5,3592.4,0.002]
[1754449291653,13.44843875,3592.5,3592.4,0.002]
[1754449292340,3.6892,3592.5,3592.4,0.9199]
[1754449292544,7.9362,3592.5,3592.4,0.9199]
[1754449293365,10.71977689,3592.5,3592.4,0.002]
[1754449293565,10.71977689,3592.5,3592.4,0.4644]
[1754449293877,10.71977689,3592.5,3592.4,0.9199]
[1754449296344,13.44843875,3592.5,3592.4,0.002]
[1754449297281,7.9362,3592.5,3592.4,0.9199]
[1754449297487,3.6892,3592.5,3592.4,0.9199]
[1754449297694,34.37367727,3592.5,3592.4,0.9199]
[1754449297991,34.37367727,3592.5,3592.4,0.002]
[1754449299063,34.37367727,3592.5,3592.4,0.4575]
[1754449299405,34.37367727,3592.5,3592.4,0.9199]
[1754449299895,34.37367727,3592.5,3592.4,0.002]
[1754449300094,67.10233913,3592.5,3592.4,0.002]
[1754449301686,62.85533913,3592.5,3592.4,0.9199]
[1754449301996,67.10233913,3592.5,3592.4,0.9199]
[1754449303781,67.58983913,3592.5,3592.4,0.002]
[1754449303979,67.10233913,3592.5,3592.4,0.002]
[1754449304380,67.58983913,3592.5,3592.4,0.002]
[1754449304704,68.02473913,3592.5,3592.4,0.002]
[1754449308824,38.02473913,3592.5,3592.4,0.002]
[1754449309131,68.02473913,3592.5,3592.4,0.002]
[1754449309288,68.02473913,3592.5,3592.4,1e-08]
[1754449309687,3.33380936,3592.2,3592.1,0.042]
[1754449309927,42.01705393,3592.2,3592.1,0.042]
[1754449310092,42.64375393,3592.2,3592.1,0.042]
[1754449310934,43.07865393,3592.2,3592.1,0.042]
[1754449311230,6.33388686,3592.1,3592.0,1e-08]
[1754449311434,60.47528724,3592.1,3592.0,1e-08]
[1754449311589,63.2039491,3592.1,3592.0,1e-08]
[1754449311786,66.9624491,3592.1,3592.0,1e-08]
[1754449312622,67.4499491,3592.1,3592.0,1e-08]
[1754449313027,67.8848491,3592.1,3592.0,1e-08]
[1754449313435,66.9624491,3592.1,3592.0,1e-08]
[1754449313640,67.4499491,3592.1,3592.0,1e-08]
[1754449313943,67.8848491,3592.1,3592.0,1e-08]
[1754449314106,67.9963531,3592.1,3592.0,1e-08]
[1754449314501,67.5614531,3592.1,3592.0,1e-08]
[1754449314699,67.4499491,3592.1,3592.0,1e-08]
[1754449315327,62.7164491,3592.1,3592.0,1e-08]
[1754449315516,66.9624491,3592.1,3592.0,1e-08]
[1754449315728,66.9624491,3592.1,3592.0,0.89510001]
[1754449317213,66.9624491,3592.1,3592.0,1e-08]
[1754449317544,67.4499491,3592.1,3592.0,1e-08]
[1754449319954,67.8848491,3592.1,3592.0,1e-08]
[1754449320452,67.8848491,3592.1,3591.7,0.002]
[1754449320453,6.33411938,3591.8,3591.7,0.002]
[1754449320743,40.58011938,3591.8,3591.7,0.002]
[1754449320946,41.20681938,3591.8,3591.7,0.002]
[1754449321159,41.84797323,3591.8,3591.7,1e-08]
[1754449321307,2.78442947,3591.4,3591.3,0.002]
[1754449321511,64.37352985,3591.4,3591.3,0.002]
[1754449322011,64.86102985,3591.4,3591.3,0.002]
[1754449323545,64.99678785,3591.4,3591.3,1e-08]
[1754449323746,0.55,3591.1,3591.0,0.002]
[1754449324057,47.26666208,3591.1,3591.0,0.002]
[1754449324213,47.75416208,3591.1,3591.0,0.002]
[1754449324569,43.15986208,3591.1,3591.0,0.002]
[1754449324719,50.13452394,3591.1,3591.0,0.8971]
[1754449325115,50.13452394,3591.1,3591.0,0.002]
[1754449326117,50.13452394,3591.1,3591.0,0.8971]
[1754449326351,50.13452394,3591.1,3591.0,0.002]
[1754449326352,49.99532394,3591.1,3591.0,0.002]
[1754449326567,50.27402394,3591.1,3591.0,0.002]
[1754449327325,50.27502394,3591.1,3591.0,0.8971]
[1754449327554,45.74932394,3591.1,3591.0,0.8971]
[1754449327753,49.99532394,3591.1,3591.0,0.8971]
[1754449330327,49.99532394,3591.1,3591.0,0.002]
[1754449330928,50.48282394,3591.1,3591.0,0.002]
[1754449332365,50.91772394,3591.1,3591.0,0.002]
[1754449333173,50.91772394,3591.1,3590.2,0.4709]
[1754449333174,2.78481717,3590.9,3590.2,0.4709]
[1754449333373,6.33528256,3590.3,3590.2,0.9137]
[1754449333544,10.58128256,3590.3,3590.2,0.9137]
[1754449334364,10.58128256,3590.3,3590.2,0.9157]
[1754449334662,10.58128256,3590.3,3590.2,0.002]
[1754449334864,10.58128256,3590.3,3590.2,0.9157]
[1754449336378,10.72048256,3590.3,3590.2,0.9157]
[1754449337227,13.44914442,3590.3,3590.2,0.9157]
[1754449337868,43.44914442,3590.3,3590.2,0.002]
[1754449338684,51.06524442,3590.3,3590.2,0.002]
[1754449340034,51.51104442,3590.3,3590.2,0.002]
[1754449340229,51.06524442,3590.3,3590.2,0.002]
[1754449340671,50.60914442,3590.3,3590.2,0.002]
[1754449341158,51.06524442,3590.3,3590.2,0.002]
[1754449342164,51.51104442,3590.3,3590.2,0.002]
[1754449342336,51.51104442,3590.3,3590.1,0.04]
[1754449342536,38.22870471,3590.2,3590.1,0.04]
[1754449348074,39.06545171,3590.2,3590.1,0.04]
[1754449348273,39.06433758,3590.2,3590.1,0.04]
[1754449349503,43.31133758,3590.2,3590.1,0.04]
[1754449351101,43.31133758,3590.2,3589.7,0.9137]
[1754449351102,6.33567051,3589.8,3589.7,0.9137]
[1754449351310,6.33613618,3589.2,3589.1,0.042]
[1754449351515,10.72133618,3589.2,3589.1,0.042]
[1754449351810,17.41033618,3589.2,3589.1,0.9557]
[1754449351959,49.22687282,3589.2,3589.1,0.9557]
[1754449352392,49.22687282,3589.2,3589.1,0.042]
[1754449352554,49.43394316,3589.2,3589.1,0.042]
[1754449352954,49.43394316,3589.2,3589.1,0.9557]
[1754449353690,49.43394316,3589.2,3589.1,0.042]
[1754449355805,49.89004316,3589.2,3589.1,0.042]
[1754449356406,50.33584316,3589.2,3589.1,0.042]
[1754449356709,50.33584316,3589.2,3589.1,1e-08]
[1754449356710,45.63374316,3589.2,3589.1,1e-08]
[1754449356879,49.43394316,3589.2,3589.1,0.44280001]
[1754449357076,49.43394316,3589.2,3589.1,0.91370001]
[1754449358196,46.86133618,3589.2,3589.1,0.91370001]
[1754449358401,39.8282,3589.2,3589.1,0.91370001]
[1754449358561,44.0752,3589.2,3589.1,0.91370001]
[1754449358764,44.6252,3589.2,3589.1,0.91370001]
[1754449358993,41.0752,3589.2,3589.1,0.91370001]
[1754449359207,44.0752,3589.2,3589.1,0.91370001]
[1754449359879,36.8282,3589.2,3589.1,0.91370001]
[1754449360083,11.0752,3589.2,3589.1,0.91370001]
[1754449360295,14.0752,3589.2,3589.1,0.91370001]
[1754449363505,17.41133618,3589.2,3589.1,0.91370001]
[1754449364407,14.6252,3589.2,3589.1,0.91370001]
[1754449365075,9.689,3589.2,3589.1,0.91370001]
[1754449365270,14.0742,3589.2,3589.1,0.91370001]
[1754449366138,6.8282,3589.2,3589.1,4.19061104]
[1754449366430,11.0742,3589.2,3589.1,4.19061104]
[1754449367202,6.8282,3589.2,3589.1,4.19061104]
[1754449367389,11.0742,3589.2,3589.1,4.19061104]
[1754449369220,4.3852,3589.2,3589.1,4.19061104]
[1754449371416,0.1392,3589.2,3589.1,4.19061104]
[1754449371598,4.3852,3589.2,3589.1,4.19061104]
[1754449372220,0.1392,3589.2,3589.1,4.19061104]
[1754449372425,4.3842,3589.2,3589.1,4.21847317]
[1754449372916,0.1392,3589.2,3589.1,4.21847317]
[1754449373115,1.22683953,3589.9,3589.1,4.21847317]
[1754449373116,1.22683953,3589.9,3589.8,2.78567051]
[1754449373326,1.22683953,3589.9,3589.8,3.25397051]
[1754449373327,5.47183953,3589.9,3589.8,3.25397051]
[1754449373530,5.61103953,3589.9,3589.8,3.75367051]
[1754449373892,1.36603953,3589.9,3589.8,3.75367051]
[1754449374092,5.61103953,3589.9,3589.8,4.40761352]
[1754449375221,1.36603953,3589.9,3589.8,4.40761352]
[1754449375526,5.47183953,3589.9,3589.8,4.40761352]
[1754449377446,1.22683953,3589.9,3589.8,4.40761352]
[1754449377598,1.22683953,3589.9,3589.8,4.43547022]
[1754449377799,1.22683953,3589.9,3589.8,4.40761352]
[1754449378125,4.245,3590.0,3589.9,2.78559291]
[1754449378326,4.245,3590.0,3589.9,4.76819526]
[1754449378708,0.1392,3590.5,3590.4,2.78520499]
[1754449378911,4.244,3590.5,3590.4,3.75320499]
[1754449381511,0.1392,3590.7,3590.6,2.784985]
[1754449381716,4.3832,3590.7,3590.6,3.78083549]
[1754449382056,4.3832,3590.7,3590.6,4.40958129]
[1754449388756,4.3832,3590.7,3590.6,3.752985]
[1754449389672,0.04,3590.9,3590.8,2.78489473]
[1754449389834,0.1792,3590.9,3590.8,2.78489473]
[1754449390037,4.4222,3590.9,3590.8,3.75289473]
[1754449390374,0.1792,3590.9,3590.8,3.75289473]
[1754449390675,0.04,3590.9,3590.8,4.68519544]
[1754449395483,0.04,3590.9,3590.8,2.78489473]
[1754449395641,0.5118,3590.9,3590.8,2.78489473]
[1754449396358,0.04,3590.9,3590.8,2.78489473]
[1754449396538,0.04,3590.9,3590.8,3.70989473]
[1754449398376,0.04,3590.9,3590.8,2.78489473]
[1754449398554,0.1792,3590.9,3590.8,3.70989473]
[1754449405078,0.1792,3590.9,3590.8,2.78489473]
[1754449405689,0.1802,3590.9,3590.8,2.78489473]
[1754449407608,0.652,3590.9,3590.8,2.78489473]
[1754449408497,0.612,3590.9,3590.8,2.78489473]
[1754449408901,0.1402,3590.9,3590.8,2.78489473]
[1754449410409,0.1402,3590.9,3590.7,2.78492509]
[1754449410607,0.001,3590.9,3590.8,2.78489473]
[1754449410980,0.1402,3590.9,3590.8,2.78489473]
[1754449411218,0.612,3590.9,3590.8,2.78489473]
[1754449411926,0.1402,3590.9,3590.7,2.78495323]
[1754449412078,0.1392,3590.7,3590.6,2.78499781]
[1754449412416,0.611,3590.7,3590.6,2.78499781]
[1754449413779,0.1392,3590.7,3590.0,0.4642]
[1754449414081,0.4718,3590.7,3590.5,2.78510036]
[1754449414274,0.911,3590.7,3590.3,2.78526037]
[1754449414480,0.4392,3590.7,3590.4,2.78520281]
[1754449414681,0.4718,3590.6,3590.3,2.78526554]
[1754449414916,0.4718,3590.5,3590.3,2.78526554]
[1754449415214,0.1392,3590.4,3590.3,2.78528256]
[1754449415982,0.1392,3590.4,3590.3,4.267348]
[1754449417085,0.1392,3590.4,3590.3,2.78528256]
[1754449417726,0.1392,3590.4,3590.3,3.71028256]
[1754449418543,0.1392,3590.4,3590.3,2.78528256]
[1754449418845,0.1392,3590.4,3590.3,3.71028256]
[1754449424849,0.1392,3590.4,3590.3,2.78528256]
[1754449425512,0.1392,3590.4,3590.3,3.73498256]
[1754449426234,0.1392,3590.4,3590.3,4.387018]
[1754449427046,0.1392,3590.4,3590.3,4.389018]
[1754449427447,0.1392,3590.4,3590.3,2.78728256]
[1754449429243,0.1392,3590.4,3590.3,3.73698256]
[1754449431524,0.1392,3590.4,3590.3,2.78728256]
[1754449433272,0.6379,3590.4,3590.3,2.78728256]
[1754449434259,0.1392,3590.4,3590.3,2.78728256]
[1754449437765,0.1392,3590.4,3590.3,3.73698256]
[1754449437948,0.1392,3590.4,3590.3,4.389218]
[1754449439732,4.239,3590.6,3590.5,2.78512741]
[1754449440239,4.239,3590.6,3590.5,3.73482741]
[1754449440969,0.1392,3590.8,3590.7,2.78497228]
[1754449441467,0.1392,3590.8,3590.7,3.73467228]
[1754449441645,0.1392,3590.8,3590.7,4.38665225]
[1754449443272,0.001,3590.9,3590.8,2.78489473]
[1754449443769,0.001,3590.9,3590.8,3.73459473]
[1754449446276,0.001,3590.9,3590.8,2.78489473]
[1754449446442,0.001,3590.9,3590.8,3.73459473]
[1754449446633,0.001,3590.9,3590.8,4.74418217]
[1754449448480,0.001,3590.9,3590.8,4.25298217]
[1754449448679,0.001,3590.9,3590.8,4.74418217]
[1754449449061,0.001,3590.9,3590.8,3.79448217]
[1754449449962,0.001,3590.9,3590.8,2.78489473]
[1754449450176,0.4997,3590.9,3590.8,2.78489473]
[1754449450388,0.5987,3590.9,3590.8,2.78489473]
[1754449450590,0.5987,3590.9,3590.4,2.78520499]
[1754449450876,0.1392,3590.6,3590.3,2.78727692]
[1754449451075,4.238,3590.6,3590.4,2.78520499]
[1754449451239,0.4987,3590.5,3590.4,2.78520499]
[1754449452063,0.6379,3590.5,3590.4,2.78520499]
[1754449452864,0.1392,3590.5,3590.4,2.78520499]
[1754449453177,1.17232,3590.5,3590.3,0.002]
[1754449453382,0.099,3590.4,3590.3,0.002]
[1754449453770,0.5855,3590.4,3590.3,0.002]
[1754449454641,6.92070499,3590.4,3590.3,0.002]
[1754449454844,9.64936685,3590.4,3590.3,0.002]
[1754449457552,39.64936685,3590.4,3590.3,0.002]
[1754449458752,6.33551532,3590.0,3589.9,0.002]
[1754449458950,71.0526157,3590.0,3589.9,0.002]
[1754449459183,72.04224027,3590.0,3589.9,0.002]
[1754449459385,72.97454027,3590.0,3589.9,0.002]
[1754449459550,26.98972609,3589.6,3589.5,0.002]
[1754449459750,64.36692609,3589.6,3589.5,0.002]
[1754449459946,65.29922609,3589.6,3589.5,0.002]
[1754449460200,65.74684609,3589.6,3589.5,0.002]
[1754449461406,65.85841609,3589.6,3589.5,0.002]
[1754449466576,3.33605856,3589.3,3589.2,0.002]
[1754449466904,10.71325856,3589.3,3589.2,0.002]
[1754449467080,13.92842042,3589.3,3589.2,0.002]
[1754449467279,43.55350742,3589.3,3589.2,0.002]
[1754449467477,10.71325856,3589.3,3589.2,0.9344]
[1754449467989,10.71325856,3589.3,3589.2,0.4642]
[1754449468170,10.71325856,3589.3,3589.2,0.002]
[1754449468591,10.71325856,3589.3,3589.2,0.9344]
[1754449468795,12.10794325,3589.3,3589.2,0.9344]
[1754449468992,35.76184363,3589.3,3589.2,0.9344]